bitfinex/quotes_ETHUSD_20230403
["timestamp","ask_amount","ask_price","bid_price","bid_amount"]
[1680503923123,3.14028,1782.2,1781.7,2.806]
[1680503923325,3.16311876,1782.2,1781.7,3.08663]
[1680503923526,3.02283876,1782.2,1781.7,3.08663]
[1680503925815,3.03152827,1782.2,1781.7,3.03063]
[1680503926217,3.03152827,1782.2,1781.7,3.59189]
[1680503927714,3.58733355,1782.2,1781.7,3.59189]
[1680503934027,3.58733355,1782.2,1781.7,3.49189]
[1680503934529,3.58733355,1782.2,1781.7,4.07702547]
[1680503934945,3.58733355,1782.2,1781.7,3.49189]
[1680503935140,6.37510083,1782.2,1781.7,2.93063]
[1680503935364,6.79792083,1782.2,1781.7,2.65]
[1680503937048,11.224,1782.1,1781.7,2.65]
[1680503937250,3.0,1782.0,1781.7,2.65]
[1680503937457,11.224,1781.9,1781.7,2.65]
[1680503937657,11.23468951,1781.9,1781.6,0.58713547]
[1680503937858,11.23468951,1781.9,1781.6,0.58513547]
[1680503939488,11.23468951,1781.9,1781.5,1.15899706]
[1680503939692,11.23468951,1781.9,1781.4,42.68911706]
[1680503939861,11.23468951,1781.9,1781.4,12.45911706]
[1680503940458,11.37498951,1781.9,1781.4,12.45911706]
[1680503940657,11.37498951,1781.9,1781.4,12.17845706]
[1680503941262,11.37498951,1781.9,1781.4,12.45912706]
[1680503941899,11.37498951,1781.9,1781.4,12.17845706]
[1680503942084,11.37498951,1781.9,1781.4,12.45912706]
[1680503942280,11.37498951,1781.9,1781.4,12.17845706]
[1680503943089,11.39782827,1781.9,1781.4,12.17845706]
[1680503944032,11.39782827,1781.9,1781.4,12.12845706]
[1680503944234,11.39782827,1781.9,1781.4,12.40912706]
[1680503944799,11.39782827,1781.9,1781.4,12.12845706]
[1680503945338,11.39782827,1781.9,1781.4,12.40912706]
[1680503945805,11.39782827,1781.9,1781.4,12.12845706]
[1680503946838,11.39782827,1781.9,1781.4,14.82845706]
[1680503947210,12.10882827,1781.9,1781.4,14.82845706]
[1680503947409,12.38941827,1781.9,1781.4,14.82845706]
[1680503947712,3.14031,1781.8,1781.4,13.9501]
[1680503947915,11.224,1781.7,1781.4,13.9501]
[1680503948146,11.23468951,1781.7,1781.4,13.9501]
[1680503948941,11.23468951,1781.7,1781.4,2.702]
[1680503949150,11.23468951,1781.7,1781.4,2.7]
[1680503949504,11.23468951,1781.7,1781.4,3.28676791]
[1680503949836,11.23468951,1781.7,1781.4,2.7]
[1680503951251,11.23468951,1781.7,1781.4,3.28676791]
[1680503951753,11.23468951,1781.7,1781.4,2.7]
[1680503952354,11.80233385,1781.7,1781.4,2.7]
[1680503954853,12.53617261,1781.7,1781.4,2.7]
[1680503955056,2.78776728,1781.6,1781.4,2.7]
[1680503955360,11.224,1781.5,1781.4,2.7]
[1680503955526,11.23468951,1781.5,1781.4,2.7]
[1680503955725,14.23468951,1781.5,1781.4,2.7]
[1680503957865,14.23468951,1781.5,1781.4,2.98067]
[1680503958584,11.23468951,1781.5,1781.4,2.98067]
[1680503960887,11.23468951,1781.5,1781.4,2.7]
[1680503965986,11.23246412,1781.5,1781.4,2.7]
[1680503966195,11.22377461,1781.5,1781.4,2.7]
[1680503966985,11.93477461,1781.5,1781.4,2.7]
[1680503968258,11.22377461,1781.5,1781.4,2.7]
[1680503969971,11.22377461,1781.5,1781.4,2.98067]
[1680503970369,11.22377461,1781.5,1781.4,2.7]
[1680503980583,11.22377461,1781.5,1781.4,3.28676791]
[1680503984986,11.23246412,1781.5,1781.4,3.23676791]
[1680503989153,11.23246412,1781.5,1781.4,4.39579497]
[1680503989457,11.23246412,1781.5,1781.4,3.80902706]
[1680503989654,11.23246412,1781.5,1781.4,1.15902706]
[1680503989814,11.22377461,1781.5,1781.4,1.15902706]
[1680503991036,11.22377461,1781.5,1781.4,0.87835706]
[1680503992418,11.22377461,1781.5,1781.4,1.46601106]
[1680503993859,11.22377461,1781.5,1781.4,0.87835706]
[1680503994242,11.22377461,1781.5,1781.4,0.82835706]
[1680504000444,11.22377461,1781.5,1781.4,3.42835706]
[1680504000732,11.23246412,1781.5,1781.4,3.42835706]
[1680504003169,11.23246412,1781.5,1781.4,3.37835706]
[1680504007385,11.23246412,1781.5,1781.4,3.32835706]
[1680504008671,11.23246412,1781.5,1781.4,3.60902706]
[1680504010277,11.23246412,1781.5,1781.4,3.32835706]
[1680504031806,11.21987236,1781.5,1781.4,3.32835706]
[1680504032321,11.21987236,1781.5,1781.4,3.73781966]
[1680504032537,11.21987236,1781.5,1781.4,3.73981966]
[1680504037040,11.21987236,1781.5,1781.4,1.13981966]
[1680504037242,11.21987236,1781.5,1781.4,1.13781966]
[1680504041645,11.21987236,1781.5,1781.4,3.73781966]
[1680504041844,11.21987236,1781.5,1781.4,3.73981966]
[1680504042464,11.21987236,1781.5,1781.4,3.73781966]
[1680504042769,11.21987236,1781.5,1781.4,3.73981966]
[1680504044744,11.21987236,1781.5,1781.4,3.73781966]
[1680504046231,11.21987236,1781.5,1781.4,3.73981966]
[1680504046674,11.21987236,1781.5,1781.4,3.73781966]
[1680504047354,11.21987236,1781.5,1781.4,4.91095511]
[1680504047553,11.21987236,1781.5,1781.4,4.91495511]
[1680504053542,11.21698366,1781.5,1781.4,4.91495511]
[1680504056343,11.21698366,1781.5,1781.4,3.74381966]
[1680504056549,11.21698366,1781.5,1781.4,3.73981966]
[1680504063560,11.21698366,1781.5,1781.4,4.02048966]
[1680504063761,11.21698366,1781.5,1781.4,4.02248966]
[1680504064501,11.21698366,1781.5,1781.4,4.02448966]
[1680504064676,11.21698366,1781.5,1781.4,4.02248966]
[1680504065563,11.21698366,1781.5,1781.4,4.02448966]
[1680504065957,11.21698366,1781.5,1781.4,3.74381966]
[1680504066173,11.21698366,1781.5,1781.4,4.02048966]
[1680504066360,11.21698366,1781.5,1781.4,4.02248966]
[1680504066544,11.21698366,1781.5,1781.4,3.74181966]
[1680504066749,11.21698366,1781.5,1781.4,3.73981966]
[1680504075285,11.21698366,1781.5,1781.4,4.46726805]
[1680504075487,11.21698366,1781.5,1781.4,5.11706671]
[1680504075684,11.21698366,1781.5,1781.4,5.11906671]
[1680504076203,11.21315,1781.5,1781.4,5.11906671]
[1680504077965,11.22183951,1781.5,1781.4,5.1110454]
[1680504079291,11.22183951,1781.5,1781.4,5.6723954]
[1680504089071,11.22183951,1781.5,1781.4,6.55262719]
[1680504094323,11.22183951,1781.5,1781.4,5.90282853]
[1680504096023,11.22183951,1781.5,1781.4,5.90276619]
[1680504097908,11.22183951,1781.5,1781.4,5.02259674]
[1680504099029,11.22183951,1781.5,1781.4,5.90275278]
[1680504099234,11.22183951,1781.5,1781.4,5.02259674]
[1680504099534,11.22183951,1781.5,1781.4,5.90274528]
[1680504099832,11.22183951,1781.5,1781.4,5.02259674]
[1680504100240,11.20969527,1781.5,1781.4,5.02859674]
[1680504101732,11.20969527,1781.5,1781.4,5.34737498]
[1680504102898,11.20969527,1781.5,1781.4,5.34738935]
[1680504112237,11.20969527,1781.5,1781.4,4.46724674]
[1680504112544,11.20969527,1781.5,1781.4,4.46524674]
[1680504114418,11.20969527,1781.5,1781.4,5.02659674]
[1680504114620,11.20969527,1781.5,1781.4,5.02859674]
[1680504123238,11.20695254,1781.5,1781.4,5.02859674]
[1680504139264,11.20695254,1781.5,1781.4,4.18657674]
[1680504139605,11.20695254,1781.5,1781.4,4.18457674]
[1680504140454,11.20695254,1781.5,1781.4,4.46524674]
[1680504143398,11.20695254,1781.5,1781.4,5.02659674]
[1680504143593,11.20695254,1781.5,1781.4,5.02859674]
[1680504144457,11.20457742,1781.5,1781.4,5.02859674]
[1680504146449,11.20457742,1781.5,1781.4,6.49593533]
[1680504146848,11.20457742,1781.5,1781.4,5.02859674]
[1680504147380,11.20457742,1781.5,1781.4,6.49593533]
[1680504147591,11.20457742,1781.5,1781.4,5.02859674]
[1680504148471,11.22741618,1781.5,1781.4,4.18657674]
[1680504148682,11.22741618,1781.5,1781.4,4.45924674]
[1680504148885,11.22741618,1781.5,1781.4,4.46124674]
[1680504149493,11.22741618,1781.5,1781.4,5.02259674]
[1680504149657,11.22741618,1781.5,1781.4,5.02859674]
[1680504149986,11.22741618,1781.5,1781.4,5.02659674]
[1680504150161,11.22741618,1781.5,1781.4,5.02459674]
[1680504150882,11.22741618,1781.5,1781.4,5.02859674]
[1680504152157,11.22741618,1781.5,1781.4,5.02659674]
[1680504152994,11.20457742,1781.5,1781.4,5.02859674]
[1680504154395,11.20457742,1781.5,1781.4,5.02659674]
[1680504154892,11.20457742,1781.5,1781.4,5.02459674]
[1680504155692,11.20457742,1781.5,1781.4,5.02659674]
[1680504155896,11.20457742,1781.5,1781.4,5.02859674]
[1680504157058,11.20457742,1781.5,1781.4,5.02459674]
[1680504157495,11.20457742,1781.5,1781.4,5.02659674]
[1680504157798,11.20457742,1781.5,1781.4,5.02859674]
[1680504158804,11.20457742,1781.5,1781.4,5.02459674]
[1680504158966,11.20457742,1781.5,1781.4,6.49193533]
[1680504159367,11.20457742,1781.5,1781.4,6.49393533]
[1680504159591,11.20457742,1781.5,1781.4,5.02459674]
[1680504159792,11.20457742,1781.5,1781.4,5.02859674]
[1680504162574,11.20457742,1781.5,1781.4,6.49193533]
[1680504163180,11.20457742,1781.5,1781.4,5.02459674]
[1680504163504,11.20457742,1781.5,1781.4,6.49193533]
[1680504164001,11.20457742,1781.5,1781.4,5.02459674]
[1680504164181,11.20457742,1781.5,1781.4,6.49393533]
[1680504164385,11.20457742,1781.5,1781.4,5.02859674]
[1680504165375,11.20457742,1781.5,1781.4,6.49593533]
[1680504165707,11.20457742,1781.5,1781.4,5.02859674]
[1680504165908,11.20457742,1781.5,1781.4,6.49593533]
[1680504166818,11.20457742,1781.5,1781.4,5.02859674]
[1680504168211,11.20195787,1781.5,1781.4,5.02859674]
[1680504168510,11.20195787,1781.5,1781.4,6.49593533]
[1680504170210,11.20195787,1781.5,1781.4,5.02859674]
[1680504170714,11.20195787,1781.5,1781.4,7.14552886]
[1680504170912,11.20195787,1781.5,1781.4,5.97439341]
[1680504171209,11.20195787,1781.5,1781.4,4.50705482]
[1680504171395,11.20195787,1781.5,1781.4,4.50505482]
[1680504171708,11.20195787,1781.5,1781.4,5.97094023]
[1680504171874,11.20195787,1781.5,1781.4,5.97294023]
[1680504175215,11.20195787,1781.5,1781.4,5.3233467]
[1680504189151,11.19822502,1781.5,1781.4,5.3233467]
[1680504192848,11.19822502,1781.5,1781.4,4.7619967]
[1680504193046,11.19822502,1781.5,1781.4,6.49357105]
[1680504193228,11.19822502,1781.5,1781.4,5.02968564]
[1680504193431,11.19822502,1781.5,1781.4,6.49557105]
[1680504194154,11.19822502,1781.5,1781.4,6.49557594]
[1680504195035,11.19822502,1781.5,1781.4,5.3233467]
[1680504205360,11.19822502,1781.5,1781.4,4.7619967]
[1680504205579,11.19822502,1781.5,1781.4,4.17988408]
[1680504205782,11.20691453,1781.5,1781.4,4.17988408]
[1680504205991,11.20691453,1781.5,1781.4,4.46055408]
[1680504206289,11.20691453,1781.5,1781.4,4.17988408]
[1680504206483,11.20691453,1781.5,1781.4,5.33998475]
[1680504206650,11.20691453,1781.5,1781.4,5.34198475]
[1680504207264,11.20691453,1781.5,1781.4,4.46255408]
[1680504207464,11.20691453,1781.5,1781.4,4.46055408]
[1680504207872,11.20691453,1781.5,1781.4,5.33998875]
[1680504208075,11.20691453,1781.5,1781.4,5.34198875]
[1680504208953,11.20691453,1781.5,1781.4,5.06131875]
[1680504209149,11.20691453,1781.5,1781.4,5.06119013]
[1680504209489,11.20691453,1781.5,1781.4,4.46255408]
[1680504209786,11.20691453,1781.5,1781.4,5.33983039]
[1680504209961,11.20691453,1781.5,1781.4,5.34183039]
[1680504210145,11.20691453,1781.5,1781.4,5.06116039]
[1680504210348,11.20691453,1781.5,1781.4,5.34183039]
[1680504210946,11.20691453,1781.5,1781.4,4.46255408]
[1680504211152,11.20691453,1781.5,1781.4,5.0591577]
[1680504211481,11.20691453,1781.5,1781.4,4.16938491]
[1680504211681,11.20691453,1781.5,1781.4,4.16738491]
[1680504212981,11.19534274,1781.5,1781.4,4.17138491]
[1680504213385,11.19534274,1781.5,1781.4,3.88871491]
[1680504214898,11.19534274,1781.5,1781.4,3.88671491]
[1680504215252,14.84312953,1781.5,1781.4,3.18625684]
[1680504215503,14.84312953,1781.5,1781.2,0.44406078]
[1680504215504,0.5,1781.4,1781.2,0.44406078]
[1680504215652,0.5,1781.4,1780.8,31.69588541]
[1680504215653,0.99931501,1780.9,1780.8,0.96087786]
[1680504215853,15.96305503,1780.9,1780.8,0.006]
[1680504216151,15.57071726,1780.9,1780.7,0.1]
[1680504216351,0.711,1780.8,1780.7,0.1]
[1680504216559,15.32549274,1780.8,1780.7,0.1]
[1680504216772,15.32749274,1780.8,1780.7,0.1]
[1680504219897,18.82626002,1780.8,1780.7,0.1]
[1680504220199,19.05626002,1780.8,1780.7,0.1]
[1680504220495,19.60848978,1780.8,1780.7,0.1]
[1680504223266,19.32771978,1780.8,1780.7,0.1]
[1680504223463,16.5907225,1780.8,1780.7,0.1]
[1680504224800,15.8797225,1780.8,1780.7,0.1]
[1680504225794,14.7475725,1780.8,1780.7,0.1]
[1680504226206,14.89024288,1780.8,1780.7,0.1]
[1680504226414,14.89024288,1780.8,1780.7,0.36984682]
[1680504231923,14.7475725,1780.8,1780.7,0.36984682]
[1680504232116,15.4585725,1780.8,1780.7,0.36984682]
[1680504233657,14.90634274,1780.8,1780.7,0.36984682]
[1680504234351,14.90634274,1780.8,1780.7,0.1]
[1680504240558,14.19534274,1780.8,1780.7,0.1]
[1680504240758,11.19534274,1780.8,1780.7,0.1]
[1680504240957,11.19332402,1780.8,1780.7,0.94235]
[1680504241277,11.19332402,1780.8,1780.7,4.01776928]
[1680504241561,11.19332402,1780.8,1780.7,4.31532745]
[1680504241863,11.19332402,1780.8,1780.7,0.96599017]
[1680504242029,11.19332402,1780.8,1780.7,0.95999017]
[1680504242229,11.19332402,1780.8,1780.7,0.67233817]
[1680504242955,11.19332402,1780.8,1780.7,2.35705817]
[1680504243156,11.19332402,1780.8,1780.7,2.36305817]
[1680504243464,11.19332402,1780.8,1780.7,1.23990817]
[1680504245861,11.19332402,1780.8,1780.7,1.23590817]
[1680504246179,11.19332402,1780.8,1780.7,1.23790817]
[1680504246331,11.19332402,1780.8,1780.7,1.23590817]
[1680504246768,11.19332402,1780.8,1780.7,1.95090817]
[1680504247139,11.19332402,1780.8,1780.7,2.22709899]
[1680504256117,11.19332402,1780.8,1780.7,1.95090817]
[1680504256262,11.19332402,1780.8,1780.7,0.65549854]
[1680504256595,11.19332402,1780.8,1780.7,0.64949854]
[1680504258206,11.19332402,1780.8,1780.7,0.65549854]
[1680504258582,11.19332402,1780.8,1780.7,1.21506854]
[1680504258762,11.19332402,1780.8,1780.7,1.21706854]
[1680504259866,11.19332402,1780.8,1780.7,1.80006981]
[1680504260476,11.19332402,1780.8,1780.7,2.67513171]
[1680504261305,11.19332402,1780.8,1780.7,1.80006981]
[1680504262688,11.19332402,1780.8,1780.7,2.67513171]
[1680504262896,11.19332402,1780.8,1780.7,1.80006981]
[1680504263777,11.19332402,1780.8,1780.7,1.79406981]
[1680504263778,11.19113032,1780.8,1780.7,1.79406981]
[1680504267823,11.19113032,1780.8,1780.7,2.66913171]
[1680504270917,11.19113032,1780.8,1780.7,2.08613044]
[1680504276225,11.19113032,1780.8,1780.7,8.21780863]
[1680504276226,6.40889629,1780.8,1780.7,8.21780863]
[1680504276380,6.40889629,1780.8,1780.7,8.51254521]
[1680504276381,0.002,1780.8,1780.7,8.51254521]
[1680504276585,0.00868951,1781.6,1780.7,8.50654521]
[1680504276780,0.00868951,1781.6,1781.1,0.58568225]
[1680504277015,0.00868951,1781.6,1781.2,0.2807]
[1680504277502,0.00868951,1781.6,1781.2,0.59270535]
[1680504278315,0.00868951,1781.6,1781.2,1.15411535]
[1680504280097,4.36417905,1781.7,1781.2,1.15411535]
[1680504282002,0.711,1781.4,1781.2,0.59270535]
[1680504282201,1.211,1781.4,1781.2,0.59270535]
[1680504282425,0.711,1781.4,1781.2,0.59270535]
[1680504294429,0.711,1781.4,1781.2,1.15411535]
[1680504294951,0.711,1781.4,1781.2,1.15811535]
[1680504295152,0.711,1781.4,1781.2,1.16011535]
[1680504295917,0.711,1781.4,1781.2,1.15811535]
[1680504298353,0.711,1781.4,1781.2,1.16011535]
[1680504298913,0.711,1781.4,1781.2,1.15811535]
[1680504299633,0.711,1781.4,1781.2,1.16011535]
[1680504300252,0.711,1781.4,1781.2,1.15811535]
[1680504301161,0.711,1781.4,1781.2,1.16011535]
[1680504301562,0.711,1781.4,1781.2,1.15811535]
[1680504302059,3.708,1781.5,1781.2,1.15611535]
[1680504302430,0.708,1781.5,1781.2,1.15611535]
[1680504302631,0.708,1781.5,1781.2,1.15411535]
[1680504304367,11.227,1781.4,1781.2,0.59270535]
[1680504304564,11.229,1781.4,1781.2,0.59270535]
[1680504304940,11.2252562,1781.4,1781.2,0.31200535]
[1680504305120,11.2252562,1781.4,1781.2,0.59270535]
[1680504306875,11.2252562,1781.4,1781.2,0.31200535]
[1680504307423,11.2252562,1781.4,1781.0,0.28073]
[1680504308588,11.2252562,1781.4,1781.1,0.29418226]
[1680504309486,11.2252562,1781.4,1781.1,0.57490226]
[1680504309671,11.2252562,1781.4,1781.1,1.72203451]
[1680504310045,11.2252562,1781.4,1781.1,2.1662813]
[1680504311477,11.2252562,1781.4,1781.1,1.72203451]
[1680504312390,11.2252562,1781.4,1781.1,1.16058451]
[1680504315064,11.2252562,1781.4,1781.1,1.72203451]
[1680504315796,11.2342562,1781.4,1781.1,1.71987355]
[1680504316798,11.2342562,1781.4,1781.1,2.59839693]
[1680504317000,11.2342562,1781.4,1781.2,0.25983969]
[1680504317295,11.2342562,1781.4,1781.3,0.84207]
[1680504317597,11.2342562,1781.4,1781.3,0.28069]
[1680504317904,11.2342562,1781.4,1781.3,0.84207]
[1680504319719,11.2342562,1781.4,1781.3,0.28069]
[1680504319863,11.2342562,1781.4,1781.2,1.15852932]
[1680504320478,11.2342562,1781.4,1781.2,1.71993932]
[1680504321706,11.2342562,1781.4,1781.3,0.60851419]
[1680504321907,11.2342562,1781.4,1781.3,3.86503644]
[1680504322065,11.2252562,1781.4,1781.3,7.86380372]
[1680504322273,11.2252562,1781.4,1781.3,7.86580372]
[1680504322495,0.002,1781.4,1781.3,7.36580372]
[1680504322671,0.55461286,1781.7,1781.3,19.56825339]
[1680504322866,0.11900001,1781.9,1781.5,1.2970565]
[1680504323066,0.11900001,1781.9,1781.6,0.84192]
[1680504323270,0.11000001,1781.9,1781.6,0.84192]
[1680504323504,0.11000001,1781.9,1781.6,1.1268762]
[1680504328512,0.11900001,1781.9,1781.6,1.1268762]
[1680504333429,0.11900001,1781.9,1781.6,1.23956382]
[1680504340710,0.11510767,1781.9,1781.6,1.23956382]
[1680504340911,0.10610767,1781.9,1781.6,1.23956382]
[1680504348419,0.10610767,1781.9,1781.7,3.49876728]
[1680504348616,0.10610767,1781.9,1781.8,1.9643]
[1680504348848,0.10610767,1781.9,1781.8,2.51120673]
[1680504349249,0.10610767,1781.9,1781.8,2.51320673]
[1680504349467,0.10610767,1781.9,1781.8,7.05723302]
[1680504349615,0.10610767,1781.9,1781.8,7.05923302]
[1680504349816,0.10610767,1781.9,1781.8,7.65128952]
[1680504351119,0.10610767,1781.9,1781.8,7.06523302]
[1680504351822,0.10610767,1781.9,1781.8,7.08805854]
[1680504361462,0.10610767,1781.9,1781.8,7.08205854]
[1680504361463,0.10363766,1781.9,1781.8,7.08205854]
[1680504362175,0.10363766,1781.9,1781.8,6.37205854]
[1680504366038,0.10363766,1781.9,1781.8,6.95811504]
[1680504366937,0.10363766,1781.9,1781.8,6.24711504]
[1680504371481,0.10363766,1781.9,1781.8,5.66105854]
[1680504372181,0.10363766,1781.9,1781.8,6.37205854]
[1680504375080,0.10363766,1781.9,1781.8,6.95811504]
[1680504375581,0.10363766,1781.9,1781.8,6.37205854]
[1680504377184,0.10363766,1781.9,1781.8,6.95811504]
[1680504377343,0.10363766,1781.9,1781.8,6.37205854]
[1680504377547,0.10363766,1781.9,1781.8,6.95811504]
[1680504377747,0.09707466,1781.9,1781.8,6.37205854]
[1680504378185,0.09707466,1781.9,1781.8,5.63823302]
[1680504378362,0.09707466,1781.9,1781.8,5.09132629]
[1680504381177,0.09707466,1781.9,1781.8,2.30355901]
[1680504381475,0.09707466,1781.9,1781.8,2.30155901]
[1680504385180,0.09707466,1781.9,1781.8,2.88761551]
[1680504389921,0.09707466,1781.9,1781.8,5.96841104]
[1680504390215,0.09707466,1781.9,1781.8,6.75568859]
[1680504390621,0.09707466,1781.9,1781.8,7.46668859]
[1680504391113,0.09707466,1781.9,1781.8,6.75568859]
[1680504393001,0.09707466,1781.9,1781.8,7.04796834]
[1680504395116,0.09707466,1781.9,1781.8,8.51217397]
[1680504395312,0.09707466,1781.9,1781.8,13.59857397]
[1680504396343,0.09707466,1781.9,1781.8,12.42720947]
[1680504397512,0.09707466,1781.9,1781.8,13.599336]
[1680504397708,0.09707466,1781.9,1781.8,12.42720947]
[1680504398647,0.09707466,1781.9,1781.8,13.59933376]
[1680504399417,0.09707466,1781.9,1781.8,12.42720947]
[1680504400559,0.09707466,1781.9,1781.8,13.5993389]
[1680504400846,0.09707466,1781.9,1781.8,13.59933845]
[1680504401145,0.09707466,1781.9,1781.8,12.42720947]
[1680504402872,0.09419309,1781.9,1781.8,12.42720947]
[1680504405095,0.09419309,1781.9,1781.8,12.42720947]
[1680504411216,0.09419309,1781.9,1781.8,12.38500384]
[1680504414900,0.09419309,1781.9,1781.8,13.84924982]
[1680504421628,0.09419309,1781.9,1781.8,12.38500384]
[1680504422144,0.09419309,1781.9,1781.8,11.67400384]
[1680504423344,0.09419309,1781.9,1781.8,13.13763238]
[1680504423732,0.09419309,1781.9,1781.8,11.67400384]
[1680504424067,0.09419309,1781.9,1781.8,13.13765529]
[1680504424220,0.09419309,1781.9,1781.8,13.13766059]
[1680504425744,0.09419309,1781.9,1781.8,13.84866059]
[1680504425989,0.09419309,1781.9,1781.8,20.28062583]
[1680504427038,0.0912902,1781.9,1781.8,20.28062583]
[1680504428342,0.0912902,1781.9,1781.8,18.52800384]
[1680504431251,0.0912902,1781.9,1781.8,20.28205436]
[1680504435017,0.0912902,1781.9,1781.8,19.57105436]
[1680504438497,0.0912902,1781.9,1781.8,17.81700384]
[1680504438705,0.0912902,1781.9,1781.8,17.10600384]
[1680504439546,0.0912902,1781.9,1781.8,18.85828426]
[1680504440993,0.0777118,1781.9,1781.8,18.85828426]
[1680504441894,0.0777118,1781.9,1781.8,20.28028426]
[1680504442094,0.0777118,1781.9,1781.8,19.56928426]
[1680504442907,0.0777118,1781.9,1781.8,14.48288426]
[1680504443922,0.0777118,1781.9,1781.8,12.73060384]
[1680504444418,0.0777118,1781.9,1781.8,14.4824431]
[1680504450142,0.0777118,1781.9,1781.8,7.6284431]
[1680504450727,0.0777118,1781.9,1781.8,5.87660384]
[1680504450955,0.0777118,1781.9,1781.8,7.6284431]
[1680504458952,0.0777118,1781.9,1781.8,5.87660384]
[1680504459782,0.0777118,1781.9,1781.8,12.75604393]
[1680504461978,0.0777118,1781.9,1781.8,14.80076958]
[1680504462276,0.0777118,1781.9,1781.8,15.50576958]
[1680504462482,0.0777118,1781.9,1781.8,14.76932949]
[1680504464081,0.07411607,1781.9,1781.8,14.76932949]
[1680504471292,0.07411607,1781.9,1781.8,12.72460384]
[1680504472476,0.011,1782.2,1782.1,8.70076728]
[1680504472477,0.002,1782.2,1782.1,8.70076728]
[1680504472651,0.11000001,1782.5,1782.1,23.73074728]
[1680504472998,0.11000001,1782.5,1782.4,8.70076728]
[1680504473147,0.11000001,1782.5,1782.4,13.70160728]
[1680504473354,0.11000001,1782.5,1782.4,15.31831143]
[1680504473548,0.07729873,1782.5,1782.4,15.64532426]
[1680504474358,0.07729873,1782.5,1782.4,9.50232426]
[1680504474565,0.04500682,1782.5,1782.4,9.34663869]
[1680504474765,2.84500682,1782.5,1782.4,7.88562011]
[1680504475285,2.84500682,1782.5,1782.4,9.34661966]
[1680504475486,2.81283295,1782.5,1782.4,9.34661966]
[1680504476457,2.78078282,1782.5,1782.4,9.34661966]
[1680504477369,2.74878205,1782.5,1782.4,9.34661966]
[1680504478584,2.71697827,1782.5,1782.4,9.34661966]
[1680504479367,2.68529681,1782.5,1782.4,10.51422317]
[1680504480591,2.65374548,1782.5,1782.4,10.51422317]
[1680504481572,2.6223155,1782.5,1782.4,10.51422317]
[1680504482587,2.5910064,1782.5,1782.4,10.51422317]
[1680504482893,2.5910064,1782.5,1782.4,9.34661966]
[1680504483297,2.5910064,1782.5,1782.4,17.43159822]
[1680504483505,2.55981772,1782.5,1782.4,20.43159822]
[1680504484095,2.55981772,1782.5,1782.4,20.43759822]
[1680504484517,2.528749,1782.5,1782.4,20.43159822]
[1680504485408,2.49787373,1782.5,1782.4,20.43159822]
[1680504486580,2.46711722,1782.5,1782.4,20.43159822]
[1680504487364,2.46711722,1782.5,1782.4,18.67716399]
[1680504487568,2.436479,1782.5,1782.4,18.67716399]
[1680504488469,2.40595862,1782.5,1782.4,18.67716399]
[1680504489488,0.11000001,1782.6,1782.5,8.2807164]
[1680504489689,0.11000001,1782.6,1782.5,22.17407368]
[1680504490085,0.11000001,1782.6,1782.5,21.67407368]
[1680504490270,0.11000001,1782.6,1782.5,32.66347368]
[1680504490604,0.11000001,1782.6,1782.5,35.154348]
[1680504490770,0.11000001,1782.6,1782.5,33.39991377]
[1680504491278,0.11000001,1782.8,1782.6,0.5]
[1680504491468,0.11000001,1782.8,1782.7,27.79504694]
[1680504491673,0.11000001,1782.8,1782.7,35.80504694]
[1680504491874,0.11000001,1782.8,1782.7,35.80499068]
[1680504492108,0.11000001,1782.8,1782.7,34.34972728]
[1680504492491,0.11000001,1782.8,1782.7,39.34972728]
[1680504492692,0.11000001,1782.8,1782.7,44.35156658]
[1680504493203,0.11000001,1782.8,1782.7,45.8286244]
[1680504493575,0.08011091,1782.8,1782.7,46.12751537]
[1680504494474,0.05045676,1782.8,1782.7,46.12751537]
[1680504495096,0.05045676,1782.8,1782.7,47.29032032]
[1680504495486,0.02102725,1782.8,1782.7,47.29032032]
[1680504496717,0.11942911,1782.9,1782.8,7.25436]
[1680504496928,0.11942911,1782.9,1782.8,20.34524415]
[1680504497216,0.11942911,1782.9,1782.8,31.46914415]
[1680504497716,0.11942911,1782.9,1782.8,31.73079887]
[1680504497922,0.11942911,1782.9,1782.8,29.21953794]
[1680504498118,0.11942911,1782.9,1782.8,29.78044794]
[1680504498921,3.61200467,1783.6,1782.8,29.78644794]
[1680504499080,3.11000467,1783.6,1783.2,7.25041635]
[1680504499282,0.99931501,1783.6,1783.3,1.96262]
[1680504499516,0.99931501,1783.6,1783.4,2.78776728]
[1680504499721,0.99931501,1783.6,1783.5,1.96242]
[1680504499881,0.99931501,1783.6,1783.5,4.75018728]
[1680504501518,0.99931501,1783.6,1783.5,5.03475652]
[1680504501713,0.99931501,1783.6,1783.5,5.03675652]
[1680504503609,1.11024651,1783.6,1783.5,2.24898924]
[1680504503822,1.11024651,1783.6,1783.5,1.12559924]
[1680504505997,1.11024651,1783.6,1783.5,0.28456924]
[1680504506201,1.11024651,1783.6,1783.5,1.12559924]
[1680504507194,3.91024651,1783.6,1783.5,1.12559924]
[1680504508403,1.11024651,1783.6,1783.5,1.12559924]
[1680504509643,1.11024651,1783.6,1783.5,0.28456924]
[1680504509787,3.73524651,1783.6,1783.5,0.28456924]
[1680504510826,3.23524651,1783.6,1783.5,0.28456924]
[1680504511401,3.23524651,1783.6,1783.4,0.28035]
[1680504511608,1.419,1783.5,1783.4,0.28035]
[1680504512054,0.99931501,1783.4,1783.0,0.006]
[1680504512225,0.71,1783.3,1783.1,0.8412]
[1680504515200,1.70731501,1783.4,1783.1,3.62896728]
[1680504515405,1.70731501,1783.4,1783.1,3.65777615]
[1680504515830,0.708,1783.4,1783.1,3.65777615]
[1680504517310,5.3461,1783.6,1783.3,1.96263]
[1680504517518,5.3461,1783.6,1783.3,4.75039728]
[1680504517845,5.3461,1783.6,1783.3,4.75239728]
[1680504518049,0.711,1783.6,1783.3,4.75239728]
[1680504518206,0.709,1783.6,1783.3,4.75039728]
[1680504518610,0.709,1783.6,1783.3,4.75639728]
[1680504522168,0.711,1783.5,1783.3,4.75639728]
[1680504522353,0.711,1783.5,1783.3,5.57075138]
[1680504522510,0.711,1783.5,1783.3,5.57275138]
[1680504523452,0.711,1783.5,1783.4,0.27033715]
[1680504523652,0.711,1783.5,1783.4,1.11141715]
[1680504530848,0.711,1783.5,1783.4,1.69268086]
[1680504531048,0.711,1783.5,1783.4,1.11141715]
[1680504531838,0.711,1783.5,1783.4,1.69268086]
[1680504532559,0.711,1783.5,1783.4,1.11141715]
[1680504532958,0.711,1783.5,1783.4,1.69268086]
[1680504543288,0.853,1783.5,1783.4,1.13196086]
[1680504543588,0.853,1783.5,1783.4,0.55069715]
[1680504547786,0.853,1783.5,1783.4,1.11141715]
[1680504549768,0.142,1783.5,1783.4,1.11141715]
[1680504549968,0.709,1783.6,1783.4,1.69268086]
[1680504550770,0.709,1783.6,1783.4,1.11141715]
[1680504550965,0.709,1783.6,1783.4,1.69268086]